[Event "Titled Tuesday Blitz January 17 Late 2023"]
[White "Musovic, Armin"]
[Black "Yuan, Qingyu"]
[WhiteFideId "939935"]
[BlackFideId "8609772"]
[WhiteElo "2261"]
[BlackElo "2373"]
[Result "1/2-1/2"]
[Round "02"]
[TimeControl "180+2"]
[Date "2023.01.17"]
[WhiteClock "0:00:13"]
[BlackClock "0:00:04"]

1. e4 {[%clk 0:03:00]}  e5 {[%clk 0:03:00]} 2. Nf3 {[%clk 0:03:01]}  Nc6 {[%clk 0:03:00]} 3. Nc3 {[%clk 0:03:01]}  Nf6 {[%clk 0:03:01]} 4. Bb5 {[%clk 0:03:01]}  Nd4 {[%clk 0:03:01]} 5. Nxd4 {[%clk 0:03:01]}  exd4 {[%clk 0:03:02]} 6. e5 {[%clk 0:03:02]}  dxc3 {[%clk 0:03:02]} 7. exf6 {[%clk 0:03:02]}  Qxf6 {[%clk 0:03:02]} 8. dxc3 {[%clk 0:03:02]}  Qe5+ {[%clk 0:03:03]} 9. Qe2 {[%clk 0:03:01]}  Qxe2+ {[%clk 0:03:03]} 10. Bxe2 {[%clk 0:03:01]}  Bc5 {[%clk 0:02:59]} 11. O-O {[%clk 0:03:00]}  O-O {[%clk 0:02:59]} 12. Bf4 {[%clk 0:02:59]}  d6 {[%clk 0:02:58]} 13. b4 {[%clk 0:02:59]}  Bb6 {[%clk 0:02:58]} 14. Bf3 {[%clk 0:02:58]}  a5 {[%clk 0:02:43]} 15. a3 {[%clk 0:02:57]}  Ra7 {[%clk 0:02:35]} 16. Be4 {[%clk 0:02:44]}  Be6 {[%clk 0:02:29]} 17. b5 {[%clk 0:02:34]}  a4 {[%clk 0:02:18]} 18. Rfe1 {[%clk 0:02:20]}  h6 {[%clk 0:01:57]} 19. Bd3 {[%clk 0:02:17]}  Re8 {[%clk 0:01:48]} 20. Kf1 {[%clk 0:02:14]}  Kf8 {[%clk 0:01:47]} 21. Rab1 {[%clk 0:02:10]}  Raa8 {[%clk 0:01:12]} 22. Be3 {[%clk 0:01:59]}  Ba2 {[%clk 0:00:52]} 23. Rb2 {[%clk 0:01:45]}  Bxe3 {[%clk 0:00:49]} 24. Rxe3 {[%clk 0:01:35]}  Rxe3 {[%clk 0:00:48]} 25. fxe3 {[%clk 0:01:36]}  Bd5 {[%clk 0:00:43]} 26. c4 {[%clk 0:01:34]}  Be6 {[%clk 0:00:43]} 27. Ke2 {[%clk 0:01:33]}  b6 {[%clk 0:00:28]} 28. Rb4 {[%clk 0:01:28]}  d5 {[%clk 0:00:18]} 29. cxd5 {[%clk 0:01:22]}  Bxd5 {[%clk 0:00:19]} 30. Be4 {[%clk 0:01:23]}  Bxe4 {[%clk 0:00:17]} 31. Rxe4 {[%clk 0:01:24]}  Ra5 {[%clk 0:00:15]} 32. Rb4 {[%clk 0:01:20]}  Ke7 {[%clk 0:00:14]} 33. Kd3 {[%clk 0:01:20]}  Kd6 {[%clk 0:00:15]} 34. Kc4 {[%clk 0:01:20]}  Ra8 {[%clk 0:00:15]} 35. Kd4 {[%clk 0:01:13]}  Ke6 {[%clk 0:00:14]} 36. Kc3 {[%clk 0:01:11]}  Kd5 {[%clk 0:00:14]} 37. Rf4 {[%clk 0:01:09]}  f6 {[%clk 0:00:13]} 38. Kb4 {[%clk 0:01:10]}  Re8 {[%clk 0:00:12]} 39. Rd4+ {[%clk 0:01:09]}  Ke6 {[%clk 0:00:10]} 40. Kxa4 {[%clk 0:01:10]}  Re7 {[%clk 0:00:08]} 41. Kb4 {[%clk 0:01:07]}  Kf5 {[%clk 0:00:08]} 42. Rd3 {[%clk 0:00:52]}  Re4+ {[%clk 0:00:08]} 43. c4 {[%clk 0:00:52]}  Ke6 {[%clk 0:00:05]} 44. a4 {[%clk 0:00:52]}  h5 {[%clk 0:00:05]} 45. a5 {[%clk 0:00:47]}  bxa5+ {[%clk 0:00:05]} 46. Kc5 {[%clk 0:00:48]}  a4 {[%clk 0:00:05]} 47. Ra3 {[%clk 0:00:48]}  Kd7 {[%clk 0:00:04]} 48. Rxa4 {[%clk 0:00:46]}  Rxe3 {[%clk 0:00:04]} 49. Ra8 {[%clk 0:00:47]}  Re5+ {[%clk 0:00:03]} 50. Kb4 {[%clk 0:00:46]}  Re2 {[%clk 0:00:04]} 51. g3 {[%clk 0:00:45]}  Rxh2 {[%clk 0:00:04]} 52. Rg8 {[%clk 0:00:46]}  g5 {[%clk 0:00:04]} 53. Rg7+ {[%clk 0:00:46]}  Kd8 {[%clk 0:00:03]} 54. Kc5 {[%clk 0:00:40]}  Rc2 {[%clk 0:00:03]} 55. Kd5 {[%clk 0:00:38]}  Rd2+ {[%clk 0:00:03]} 56. Kc6 {[%clk 0:00:37]}  Rd6+ {[%clk 0:00:03]} 57. Kc5 {[%clk 0:00:34]}  Re6 {[%clk 0:00:04]} 58. Rh7 {[%clk 0:00:33]}  Re3 {[%clk 0:00:04]} 59. Kd5 {[%clk 0:00:31]}  Re5+ {[%clk 0:00:04]} 60. Kd4 {[%clk 0:00:30]}  h4 {[%clk 0:00:04]} 61. gxh4 {[%clk 0:00:30]}  gxh4 {[%clk 0:00:05]} 62. Rxh4 {[%clk 0:00:30]}  Rf5 {[%clk 0:00:05]} 63. Rh8+ {[%clk 0:00:29]}  Kd7 {[%clk 0:00:05]} 64. Rh7+ {[%clk 0:00:30]}  Kd6 {[%clk 0:00:06]} 65. Rf7 {[%clk 0:00:27]}  Rf4+ {[%clk 0:00:06]} 66. Kc3 {[%clk 0:00:28]}  Rf1 {[%clk 0:00:06]} 67. Rf8 {[%clk 0:00:19]}  Rc1+ {[%clk 0:00:06]} 68. Kd4 {[%clk 0:00:19]}  Rd1+ {[%clk 0:00:06]} 69. Kc3 {[%clk 0:00:19]}  Rf1 {[%clk 0:00:06]} 70. Rd8+ {[%clk 0:00:18]}  Kc5 {[%clk 0:00:05]} 71. Rd5+ {[%clk 0:00:17]}  Kb6 {[%clk 0:00:06]} 72. Rd7 {[%clk 0:00:17]}  Rc1+ {[%clk 0:00:05]} 73. Kb4 {[%clk 0:00:17]}  Rb1+ {[%clk 0:00:06]} 74. Ka4 {[%clk 0:00:18]}  f5 {[%clk 0:00:05]} 75. Rf7 {[%clk 0:00:17]}  Rf1 {[%clk 0:00:05]} 76. Rf6+ {[%clk 0:00:17]}  Kb7 {[%clk 0:00:05]} 77. c5 {[%clk 0:00:17]}  f4 {[%clk 0:00:05]} 78. Rf7 {[%clk 0:00:16]}  Kb8 {[%clk 0:00:03]} 79. Rf8+ {[%clk 0:00:12]}  Kb7 {[%clk 0:00:02]} 80. Rf7 {[%clk 0:00:13]}  Kb8 {[%clk 0:00:03]} 81. Rf8+ {[%clk 0:00:13]}  Ka7 {[%clk 0:00:03]} 82. Rf7 {[%clk 0:00:13]}  Kb8 {[%clk 0:00:04]} 1/2-1/2


[Site "https://www.chess.com"]

[Event "Titled Tuesday Blitz January 17 Late 2023"]
[White "Martinez Reyes, Pedro Ramon"]
[Black "Nasuta, Grzegorz"]
[WhiteFideId "3901807"]
[BlackFideId "1141686"]
[WhiteElo "2376"]
[BlackElo "2552"]
[Result "0-1"]
[Round "02"]
[TimeControl "180+2"]
[Date "2023.01.17"]
[WhiteClock "0:00:18"]
[BlackClock "0:00:12"]

1. e4 {[%clk 0:03:00]}  c5 {[%clk 0:03:00]} 2. Nf3 {[%clk 0:03:00]}  e6 {[%clk 0:02:59]} 3. c3 {[%clk 0:03:00]}  Nf6 {[%clk 0:02:59]} 4. e5 {[%clk 0:02:59]}  Nd5 {[%clk 0:02:59]} 5. b4 {[%clk 0:03:00]}  cxb4 {[%clk 0:02:55]} 6. c4 {[%clk 0:03:00]}  Nb6 {[%clk 0:02:52]} 7. d4 {[%clk 0:03:01]}  Be7 {[%clk 0:02:50]} 8. Bd3 {[%clk 0:03:00]}  O-O {[%clk 0:02:04]} 9. Qe2 {[%clk 0:03:00]}  f6 {[%clk 0:01:56]} 10. exf6 {[%clk 0:02:56]}  Bxf6 {[%clk 0:01:51]} 11. Qe4 {[%clk 0:02:56]}  g6 {[%clk 0:01:52]} 12. h4 {[%clk 0:02:56]}  d5 {[%clk 0:01:52]} 13. cxd5 {[%clk 0:02:28]}  exd5 {[%clk 0:01:53]} 14. Qe2 {[%clk 0:02:28]}  Bg4 {[%clk 0:01:32]} 15. Be3 {[%clk 0:02:27]}  Nc6 {[%clk 0:01:29]} 16. Nbd2 {[%clk 0:01:53]}  Nxd4 {[%clk 0:01:26]} 17. Bxd4 {[%clk 0:01:52]}  Bxd4 {[%clk 0:01:25]} 18. O-O-O {[%clk 0:01:51]}  Qc7+ {[%clk 0:01:21]} 19. Kb1 {[%clk 0:01:50]}  Qc3 {[%clk 0:01:18]} 20. Nb3 {[%clk 0:01:50]}  Rae8 {[%clk 0:00:55]} 21. Qd2 {[%clk 0:01:47]}  Qxd2 {[%clk 0:00:53]} 22. Rxd2 {[%clk 0:01:39]}  Bc3 {[%clk 0:00:54]} 23. Rdd1 {[%clk 0:01:36]}  Bg7 {[%clk 0:00:40]} 24. Rde1 {[%clk 0:01:20]}  Na4 {[%clk 0:00:38]} 25. Rxe8 {[%clk 0:01:12]}  Rxe8 {[%clk 0:00:39]} 26. Nfd4 {[%clk 0:01:12]}  Nc3+ {[%clk 0:00:38]} 27. Kc2 {[%clk 0:01:12]}  Rc8 {[%clk 0:00:31]} 28. Kd2 {[%clk 0:00:50]}  Bh6+ {[%clk 0:00:30]} 29. Ke1 {[%clk 0:00:50]}  Nxa2 {[%clk 0:00:26]} 30. f3 {[%clk 0:00:50]}  Bd7 {[%clk 0:00:27]} 31. Kf2 {[%clk 0:00:50]}  Nc1 {[%clk 0:00:23]} 32. Bc2 {[%clk 0:00:38]}  Rxc2+ {[%clk 0:00:19]} 33. Nxc2 {[%clk 0:00:38]}  Nxb3 {[%clk 0:00:20]} 34. Nxb4 {[%clk 0:00:39]}  d4 {[%clk 0:00:19]} 35. Nd5 {[%clk 0:00:37]}  Be6 {[%clk 0:00:17]} 36. Nc7 {[%clk 0:00:32]}  Bc4 {[%clk 0:00:17]} 37. g4 {[%clk 0:00:32]}  Be3+ {[%clk 0:00:17]} 38. Kg3 {[%clk 0:00:32]}  d3 {[%clk 0:00:17]} 39. h5 {[%clk 0:00:32]}  d2 {[%clk 0:00:17]} 40. hxg6 {[%clk 0:00:33]}  hxg6 {[%clk 0:00:17]} 41. Ne8 {[%clk 0:00:33]}  Be2 {[%clk 0:00:16]} 42. Nf6+ {[%clk 0:00:33]}  Kf7 {[%clk 0:00:17]} 43. Nd5 {[%clk 0:00:26]}  Bd4 {[%clk 0:00:16]} 44. Rh7+ {[%clk 0:00:24]}  Ke6 {[%clk 0:00:16]} 45. Nf4+ {[%clk 0:00:24]}  Kd6 {[%clk 0:00:17]} 46. Nxe2 {[%clk 0:00:20]}  d1=Q {[%clk 0:00:17]} 47. Rh2 {[%clk 0:00:19]}  g5 {[%clk 0:00:13]} 48. Rh6+ {[%clk 0:00:19]}  Kc5 {[%clk 0:00:14]} 49. f4 {[%clk 0:00:18]}  Qxe2 {[%clk 0:00:13]} 50. fxg5 {[%clk 0:00:18]}  Bf2+ {[%clk 0:00:12]} 51. Kg2 {[%clk 0:00:18]}  Bh4+ {[%clk 0:00:11]} 52. Kh3 {[%clk 0:00:19]}  Bxg5 {[%clk 0:00:12]} 53. Rh5 {[%clk 0:00:16]}  Qe3+ {[%clk 0:00:11]} 54. Kh2 {[%clk 0:00:17]}  Nd4 {[%clk 0:00:11]} 55. Kh1 {[%clk 0:00:18]}  Qf3+ {[%clk 0:00:11]} 56. Kh2 {[%clk 0:00:18]}  Kc4 {[%clk 0:00:12]} 57. Rh3 {[%clk 0:00:18]}  Bf4+ {[%clk 0:00:11]} 58. Kg1 {[%clk 0:00:18]}  Ne2# {[%clk 0:00:12]} 0-1


[Site "https://www.chess.com"]

[Event "Titled Tuesday Blitz January 17 Late 2023"]
[White "Nazari, Arad"]
[Black "Fisher_TheGalactic"]
[WhiteFideId "12577324"]
[WhiteElo "2367"]
[BlackElo "2537"]
[Result "0-1"]
[Round "02"]
[TimeControl "180+2"]
[Date "2023.01.17"]
[WhiteClock "0:00:10"]
[BlackClock "0:00:35"]

1. e4 {[%clk 0:03:00]}  e6 {[%clk 0:02:59]} 2. d4 {[%clk 0:02:59]}  d5 {[%clk 0:02:59]} 3. Nd2 {[%clk 0:03:00]}  dxe4 {[%clk 0:02:58]} 4. Nxe4 {[%clk 0:03:01]}  Nd7 {[%clk 0:02:56]} 5. Nf3 {[%clk 0:03:01]}  Ngf6 {[%clk 0:02:53]} 6. Bd3 {[%clk 0:03:00]}  Nxe4 {[%clk 0:02:49]} 7. Bxe4 {[%clk 0:03:01]}  Nf6 {[%clk 0:02:50]} 8. Bd3 {[%clk 0:03:02]}  c5 {[%clk 0:02:50]} 9. c3 {[%clk 0:03:01]}  cxd4 {[%clk 0:02:49]} 10. Nxd4 {[%clk 0:03:02]}  Bc5 {[%clk 0:02:49]} 11. Be3 {[%clk 0:02:55]}  Qe7 {[%clk 0:02:42]} 12. O-O {[%clk 0:02:32]}  O-O {[%clk 0:02:41]} 13. Qc2 {[%clk 0:02:28]}  e5 {[%clk 0:02:41]} 14. Nf5 {[%clk 0:02:15]}  Bxf5 {[%clk 0:02:40]} 15. Bxf5 {[%clk 0:02:15]}  Bxe3 {[%clk 0:02:41]} 16. fxe3 {[%clk 0:02:16]}  Rad8 {[%clk 0:02:40]} 17. Rad1 {[%clk 0:02:15]}  Rxd1 {[%clk 0:02:40]} 18. Rxd1 {[%clk 0:02:16]}  Rd8 {[%clk 0:02:41]} 19. h3 {[%clk 0:02:07]}  g6 {[%clk 0:02:40]} 20. Bd3 {[%clk 0:02:00]}  Qc5 {[%clk 0:02:39]} 21. Qf2 {[%clk 0:02:00]}  Ne4 {[%clk 0:02:34]} 22. Qf3 {[%clk 0:01:47]}  Ng5 {[%clk 0:02:17]} 23. Qg3 {[%clk 0:01:43]}  Ne6 {[%clk 0:02:07]} 24. Kh2 {[%clk 0:01:10]}  Kg7 {[%clk 0:02:02]} 25. Bc2 {[%clk 0:01:07]}  Rxd1 {[%clk 0:02:03]} 26. Bxd1 {[%clk 0:01:08]}  Qd6 {[%clk 0:01:57]} 27. Bb3 {[%clk 0:01:07]}  Nc5 {[%clk 0:01:57]} 28. Bc4 {[%clk 0:00:59]}  Ne4 {[%clk 0:01:55]} 29. Qf3 {[%clk 0:00:59]}  f5 {[%clk 0:01:45]} 30. Kg1 {[%clk 0:00:54]}  Qb6 {[%clk 0:01:35]} 31. Qe2 {[%clk 0:00:27]}  f4 {[%clk 0:01:24]} 32. Bd5 {[%clk 0:00:26]}  Ng3 {[%clk 0:01:23]} 33. Qf2 {[%clk 0:00:26]}  Qd6 {[%clk 0:01:04]} 34. exf4 {[%clk 0:00:26]}  exf4 {[%clk 0:01:04]} 35. Qd4+ {[%clk 0:00:21]}  Kh6 {[%clk 0:01:03]} 36. Bf3 {[%clk 0:00:22]}  Qxd4+ {[%clk 0:00:49]} 37. cxd4 {[%clk 0:00:23]}  b6 {[%clk 0:00:50]} 38. Kf2 {[%clk 0:00:20]}  Kg5 {[%clk 0:00:50]} 39. Bg4 {[%clk 0:00:18]}  h5 {[%clk 0:00:48]} 40. Bc8 {[%clk 0:00:18]}  Nf5 {[%clk 0:00:48]} 41. d5 {[%clk 0:00:10]}  Nd6 {[%clk 0:00:46]} 42. Be6 {[%clk 0:00:10]}  Kf6 {[%clk 0:00:46]} 43. Kf3 {[%clk 0:00:10]}  Ke5 {[%clk 0:00:46]} 44. h4 {[%clk 0:00:10]}  Ne4 {[%clk 0:00:44]} 45. Bf7 {[%clk 0:00:10]}  g5 {[%clk 0:00:33]} 46. Bxh5 {[%clk 0:00:04]}  gxh4 {[%clk 0:00:32]} 47. Bf7 {[%clk 0:00:05]}  Ng5+ {[%clk 0:00:32]} 48. Kg4 {[%clk 0:00:05]}  Nxf7 {[%clk 0:00:33]} 49. Kxh4 {[%clk 0:00:06]}  Kxd5 {[%clk 0:00:33]} 50. Kg4 {[%clk 0:00:07]}  Ke4 {[%clk 0:00:34]} 51. b4 {[%clk 0:00:07]}  Ne5+ {[%clk 0:00:34]} 52. Kg5 {[%clk 0:00:08]}  Nc6 {[%clk 0:00:34]} 53. a3 {[%clk 0:00:07]}  Nd4 {[%clk 0:00:33]} 54. a4 {[%clk 0:00:07]}  Nc2 {[%clk 0:00:33]} 55. a5 {[%clk 0:00:08]}  Nxb4 {[%clk 0:00:32]} 56. axb6 {[%clk 0:00:09]}  axb6 {[%clk 0:00:33]} 57. Kf6 {[%clk 0:00:09]}  Nd5+ {[%clk 0:00:34]} 58. Ke6 {[%clk 0:00:10]}  b5 {[%clk 0:00:35]} 0-1


[Site "https://www.chess.com"]

[Event "Titled Tuesday Blitz January 17 Late 2023"]
[White "Sokolovsky, Yahli"]
[Black "Arenas, David"]
[WhiteFideId "2820242"]
[BlackFideId "4403177"]
[WhiteElo "2461"]
[BlackElo "2426"]
[Result "1-0"]
[Round "02"]
[TimeControl "180+2"]
[Date "2023.01.17"]
[WhiteClock "0:00:07"]
[BlackClock "0:00:26"]

1. b3 {[%clk 0:03:00]}  e5 {[%clk 0:02:50]} 2. Bb2 {[%clk 0:03:00]}  Nc6 {[%clk 0:02:50]} 3. e3 {[%clk 0:03:01]}  Nf6 {[%clk 0:02:49]} 4. Nf3 {[%clk 0:03:01]}  Bd6 {[%clk 0:02:48]} 5. d4 {[%clk 0:03:01]}  exd4 {[%clk 0:02:47]} 6. exd4 {[%clk 0:03:02]}  O-O {[%clk 0:02:46]} 7. Be2 {[%clk 0:03:02]}  Re8 {[%clk 0:02:44]} 8. O-O {[%clk 0:03:03]}  Bf8 {[%clk 0:02:41]} 9. d5 {[%clk 0:03:03]}  Nb8 {[%clk 0:02:37]} 10. c4 {[%clk 0:03:01]}  d6 {[%clk 0:02:37]} 11. Nbd2 {[%clk 0:02:45]}  Bf5 {[%clk 0:02:33]} 12. Nd4 {[%clk 0:02:45]}  Bg6 {[%clk 0:02:33]} 13. N2f3 {[%clk 0:02:45]}  Nbd7 {[%clk 0:02:29]} 14. Nh4 {[%clk 0:02:45]}  a5 {[%clk 0:02:28]} 15. Nxg6 {[%clk 0:02:40]}  hxg6 {[%clk 0:02:27]} 16. Bd3 {[%clk 0:02:36]}  Nc5 {[%clk 0:02:27]} 17. Bc2 {[%clk 0:02:36]}  Nfd7 {[%clk 0:02:25]} 18. Qf3 {[%clk 0:02:30]}  Be7 {[%clk 0:02:22]} 19. Rae1 {[%clk 0:01:58]}  Bf6 {[%clk 0:02:20]} 20. Qg3 {[%clk 0:01:47]}  Nf8 {[%clk 0:02:05]} 21. Ba1 {[%clk 0:01:31]}  Qd7 {[%clk 0:02:02]} 22. h4 {[%clk 0:01:20]}  Rxe1 {[%clk 0:02:00]} 23. Rxe1 {[%clk 0:01:21]}  Re8 {[%clk 0:01:58]} 24. Rd1 {[%clk 0:00:59]}  Qe7 {[%clk 0:01:55]} 25. h5 {[%clk 0:00:52]}  Bxd4 {[%clk 0:01:32]} 26. Bxd4 {[%clk 0:00:51]}  Qe2 {[%clk 0:01:31]} 27. Qc3 {[%clk 0:00:50]}  Ne4 {[%clk 0:01:19]} 28. Qb2 {[%clk 0:00:36]}  gxh5 {[%clk 0:01:11]} 29. f3 {[%clk 0:00:28]}  Ng3 {[%clk 0:00:49]} 30. Bf2 {[%clk 0:00:28]}  h4 {[%clk 0:00:46]} 31. Qc3 {[%clk 0:00:14]}  Ng6 {[%clk 0:00:41]} 32. Re1 {[%clk 0:00:08]}  Qxe1+ {[%clk 0:00:41]} 33. Qxe1 {[%clk 0:00:09]}  Rxe1+ {[%clk 0:00:40]} 34. Bxe1 {[%clk 0:00:09]}  Nf4 {[%clk 0:00:38]} 35. Kf2 {[%clk 0:00:09]}  g5 {[%clk 0:00:36]} 36. Bxa5 {[%clk 0:00:09]}  b6 {[%clk 0:00:36]} 37. Bd2 {[%clk 0:00:10]}  Kg7 {[%clk 0:00:35]} 38. b4 {[%clk 0:00:09]}  Kf6 {[%clk 0:00:34]} 39. Bc3+ {[%clk 0:00:09]}  Ke7 {[%clk 0:00:34]} 40. a4 {[%clk 0:00:10]}  Nh1+ {[%clk 0:00:27]} 41. Kg1 {[%clk 0:00:01]}  Ne2+ {[%clk 0:00:26]} 42. Kxh1 {[%clk 0:00:01]}  Nxc3 {[%clk 0:00:27]} 43. a5 {[%clk 0:00:02]}  bxa5 {[%clk 0:00:28]} 44. bxa5 {[%clk 0:00:03]}  Kd7 {[%clk 0:00:28]} 45. Bf5+ {[%clk 0:00:03]}  Kd8 {[%clk 0:00:27]} 46. a6 {[%clk 0:00:03]}  Na4 {[%clk 0:00:27]} 47. a7 {[%clk 0:00:04]}  Nb6 {[%clk 0:00:27]} 48. Kh2 {[%clk 0:00:05]}  c5 {[%clk 0:00:22]} 49. dxc6 {[%clk 0:00:02]}  Kc7 {[%clk 0:00:23]} 50. Be4 {[%clk 0:00:02]}  f5 {[%clk 0:00:20]} 51. Bd5 {[%clk 0:00:03]}  Na8 {[%clk 0:00:20]} 52. Kg1 {[%clk 0:00:02]}  Nb6 {[%clk 0:00:20]} 53. Kf2 {[%clk 0:00:02]}  g4 {[%clk 0:00:19]} 54. fxg4 {[%clk 0:00:01]}  fxg4 {[%clk 0:00:20]} 55. Ke3 {[%clk 0:00:02]}  h3 {[%clk 0:00:19]} 56. gxh3 {[%clk 0:00:02]}  gxh3 {[%clk 0:00:20]} 57. Kf3 {[%clk 0:00:03]}  h2 {[%clk 0:00:20]} 58. Kg2 {[%clk 0:00:04]}  Na8 {[%clk 0:00:20]} 59. Kxh2 {[%clk 0:00:04]}  Nb6 {[%clk 0:00:21]} 60. Kg2 {[%clk 0:00:05]}  Na8 {[%clk 0:00:22]} 61. Kf3 {[%clk 0:00:05]}  Nb6 {[%clk 0:00:23]} 62. Ke4 {[%clk 0:00:06]}  Na8 {[%clk 0:00:24]} 63. Kd4 {[%clk 0:00:07]}  Nb6 {[%clk 0:00:25]} 64. Kc3 {[%clk 0:00:08]}  Nc8 {[%clk 0:00:25]} 65. a8=Q {[%clk 0:00:07]}  Na7 {[%clk 0:00:26]} 66. Qxa7+ {[%clk 0:00:07]} 1-0


[Site "https://www.chess.com"]

[Event "Titled Tuesday Blitz January 17 Late 2023"]
[White "Wieczorek, Oskar"]
[Black "Khandelwal, Ankush"]
[WhiteFideId "1133950"]
[BlackFideId "413470"]
[WhiteElo "2512"]
[BlackElo "2205"]
[Result "1-0"]
[Round "02"]
[TimeControl "180+2"]
[Date "2023.01.17"]
[WhiteClock "0:00:41"]
[BlackClock "0:00:04"]

1. e4 {[%clk 0:03:00]}  c5 {[%clk 0:03:00]} 2. Nf3 {[%clk 0:03:00]}  d6 {[%clk 0:03:00]} 3. d4 {[%clk 0:03:00]}  cxd4 {[%clk 0:03:01]} 4. Nxd4 {[%clk 0:03:01]}  Nf6 {[%clk 0:03:02]} 5. Nc3 {[%clk 0:03:01]}  a6 {[%clk 0:03:02]} 6. Be2 {[%clk 0:03:02]}  e5 {[%clk 0:03:02]} 7. Nf3 {[%clk 0:03:03]}  Be7 {[%clk 0:03:02]} 8. Bg5 {[%clk 0:03:03]}  Be6 {[%clk 0:03:00]} 9. Bxf6 {[%clk 0:03:03]}  Bxf6 {[%clk 0:03:00]} 10. O-O {[%clk 0:03:03]}  O-O {[%clk 0:02:59]} 11. Nd5 {[%clk 0:03:04]}  Nd7 {[%clk 0:02:57]} 12. Bc4 {[%clk 0:03:04]}  Rc8 {[%clk 0:02:43]} 13. Qe2 {[%clk 0:03:02]}  b5 {[%clk 0:02:39]} 14. Bb3 {[%clk 0:02:59]}  Nc5 {[%clk 0:02:38]} 15. Rfd1 {[%clk 0:02:59]}  Bxd5 {[%clk 0:02:03]} 16. Bxd5 {[%clk 0:02:49]}  Qc7 {[%clk 0:02:03]} 17. c3 {[%clk 0:02:46]}  g6 {[%clk 0:01:53]} 18. g3 {[%clk 0:02:44]}  Kg7 {[%clk 0:01:53]} 19. Kg2 {[%clk 0:02:44]}  Bd8 {[%clk 0:01:50]} 20. Rac1 {[%clk 0:02:26]}  Qe7 {[%clk 0:01:48]} 21. b4 {[%clk 0:02:22]}  Ne6 {[%clk 0:01:26]} 22. a4 {[%clk 0:02:15]}  Rb8 {[%clk 0:01:12]} 23. axb5 {[%clk 0:02:14]}  axb5 {[%clk 0:01:13]} 24. Ra1 {[%clk 0:02:11]}  Bb6 {[%clk 0:01:09]} 25. Qa2 {[%clk 0:01:51]}  Rfc8 {[%clk 0:00:59]} 26. Rd3 {[%clk 0:01:49]}  Rc7 {[%clk 0:00:56]} 27. Rad1 {[%clk 0:01:48]}  Nf8 {[%clk 0:00:30]} 28. h4 {[%clk 0:01:46]}  Nd7 {[%clk 0:00:29]} 29. Ng5 {[%clk 0:01:22]}  Rf8 {[%clk 0:00:23]} 30. Qa6 {[%clk 0:01:20]}  h6 {[%clk 0:00:21]} 31. Nf3 {[%clk 0:01:20]}  Rb8 {[%clk 0:00:19]} 32. Qa2 {[%clk 0:01:18]}  f5 {[%clk 0:00:19]} 33. Qe2 {[%clk 0:01:15]}  Nf6 {[%clk 0:00:19]} 34. Nd2 {[%clk 0:01:05]}  Rbc8 {[%clk 0:00:19]} 35. Qf3 {[%clk 0:00:58]}  f4 {[%clk 0:00:16]} 36. Bb3 {[%clk 0:00:54]}  fxg3 {[%clk 0:00:16]} 37. fxg3 {[%clk 0:00:55]}  Rf8 {[%clk 0:00:17]} 38. Qe2 {[%clk 0:00:53]}  Nh5 {[%clk 0:00:15]} 39. Nf3 {[%clk 0:00:53]}  Rf6 {[%clk 0:00:11]} 40. Qd2 {[%clk 0:00:52]}  Rc8 {[%clk 0:00:12]} 41. Rxd6 {[%clk 0:00:50]}  Rxf3 {[%clk 0:00:07]} 42. Kxf3 {[%clk 0:00:43]}  Rf8+ {[%clk 0:00:04]} 43. Kg2 {[%clk 0:00:43]}  Kh8 {[%clk 0:00:04]} 44. Rxb6 {[%clk 0:00:41]} 1-0


[Site "https://www.chess.com"]

[Event "Titled Tuesday Blitz January 17 Late 2023"]
[White "Pesotskiy, Mikhail"]
[Black "Boyer, Mahel"]
[WhiteFideId "34164453"]
[BlackFideId "45102422"]
[WhiteElo "2153"]
[BlackElo "2489"]
[Result "1-0"]
[Round "02"]
[TimeControl "180+2"]
[Date "2023.01.17"]
[WhiteClock "0:00:18"]
[BlackClock "0:00:06"]

1. d4 {[%clk 0:02:58]}  d6 {[%clk 0:03:00]} 2. c4 {[%clk 0:02:58]}  e5 {[%clk 0:03:00]} 3. d5 {[%clk 0:02:59]}  f5 {[%clk 0:03:00]} 4. e4 {[%clk 0:03:00]}  fxe4 {[%clk 0:02:58]} 5. Nc3 {[%clk 0:03:00]}  Nf6 {[%clk 0:02:58]} 6. Nge2 {[%clk 0:03:01]}  Na6 {[%clk 0:02:57]} 7. Ng3 {[%clk 0:02:59]}  Nc5 {[%clk 0:02:58]} 8. Bg5 {[%clk 0:03:00]}  a5 {[%clk 0:02:56]} 9. Ngxe4 {[%clk 0:02:55]}  Ncxe4 {[%clk 0:02:57]} 10. Nxe4 {[%clk 0:02:56]}  Be7 {[%clk 0:02:58]} 11. Bxf6 {[%clk 0:02:50]}  Bxf6 {[%clk 0:02:58]} 12. Bd3 {[%clk 0:02:49]}  Be7 {[%clk 0:02:57]} 13. O-O {[%clk 0:02:34]}  O-O {[%clk 0:02:48]} 14. Rc1 {[%clk 0:02:22]}  Bf5 {[%clk 0:02:45]} 15. Qe2 {[%clk 0:02:17]}  b6 {[%clk 0:02:29]} 16. Ng3 {[%clk 0:02:16]}  Bd7 {[%clk 0:02:29]} 17. Qh5 {[%clk 0:02:12]}  h6 {[%clk 0:02:18]} 18. Qg6 {[%clk 0:02:11]}  Bf6 {[%clk 0:02:06]} 19. f4 {[%clk 0:01:22]}  e4 {[%clk 0:01:25]} 20. Bxe4 {[%clk 0:01:20]}  Bd4+ {[%clk 0:01:08]} 21. Kh1 {[%clk 0:01:20]}  Qf6 {[%clk 0:01:09]} 22. Qh7+ {[%clk 0:01:18]}  Kf7 {[%clk 0:01:10]} 23. Nh5 {[%clk 0:01:18]}  Qh4 {[%clk 0:01:03]} 24. Bg6+ {[%clk 0:00:42]}  Ke7 {[%clk 0:01:03]} 25. Nxg7 {[%clk 0:00:42]}  Kd8 {[%clk 0:00:43]} 26. Nf5 {[%clk 0:00:30]}  Bxf5 {[%clk 0:00:37]} 27. Bxf5 {[%clk 0:00:31]}  Qe7 {[%clk 0:00:37]} 28. Qg6 {[%clk 0:00:09]}  Qf6 {[%clk 0:00:34]} 29. Qxf6+ {[%clk 0:00:04]}  Rxf6 {[%clk 0:00:35]} 30. Be6 {[%clk 0:00:03]}  Bxb2 {[%clk 0:00:36]} 31. Rce1 {[%clk 0:00:03]}  a4 {[%clk 0:00:20]} 32. g4 {[%clk 0:00:03]}  Bc3 {[%clk 0:00:19]} 33. Re3 {[%clk 0:00:03]}  Bd2 {[%clk 0:00:16]} 34. Re2 {[%clk 0:00:03]}  Rxf4 {[%clk 0:00:14]} 35. Rxf4 {[%clk 0:00:04]}  Bxf4 {[%clk 0:00:15]} 36. Rf2 {[%clk 0:00:05]}  a3 {[%clk 0:00:08]} 37. Rxf4 {[%clk 0:00:05]}  Ra4 {[%clk 0:00:09]} 38. h4 {[%clk 0:00:05]}  Rb4 {[%clk 0:00:05]} 39. Kg2 {[%clk 0:00:06]}  b5 {[%clk 0:00:04]} 40. Rf2 {[%clk 0:00:07]}  Rxc4 {[%clk 0:00:04]} 41. g5 {[%clk 0:00:07]}  Rxh4 {[%clk 0:00:05]} 42. g6 {[%clk 0:00:07]}  Rh5 {[%clk 0:00:05]} 43. Rf3 {[%clk 0:00:07]}  Rg5+ {[%clk 0:00:02]} 44. Rg3 {[%clk 0:00:08]}  Rxg6 {[%clk 0:00:01]} 45. Rxg6 {[%clk 0:00:09]}  b4 {[%clk 0:00:01]} 46. Rg3 {[%clk 0:00:09]}  Ke7 {[%clk 0:00:01]} 47. Rb3 {[%clk 0:00:08]}  c5 {[%clk 0:00:01]} 48. dxc6 {[%clk 0:00:08]}  Kxe6 {[%clk 0:00:02]} 49. Rxb4 {[%clk 0:00:09]}  d5 {[%clk 0:00:01]} 50. Rh4 {[%clk 0:00:10]}  Kd6 {[%clk 0:00:01]} 51. Rxh6+ {[%clk 0:00:11]}  Kc7 {[%clk 0:00:02]} 52. Kf2 {[%clk 0:00:12]}  d4 {[%clk 0:00:03]} 53. Ke2 {[%clk 0:00:13]}  d3+ {[%clk 0:00:03]} 54. Kxd3 {[%clk 0:00:14]}  Kb6 {[%clk 0:00:04]} 55. Kc4 {[%clk 0:00:15]}  Kc7 {[%clk 0:00:05]} 56. Kc5 {[%clk 0:00:16]}  Kb8 {[%clk 0:00:05]} 57. Rh7 {[%clk 0:00:16]}  Kc8 {[%clk 0:00:05]} 58. Kd6 {[%clk 0:00:16]}  Kb8 {[%clk 0:00:04]} 59. c7+ {[%clk 0:00:17]}  Kb7 {[%clk 0:00:05]} 60. Rh8 {[%clk 0:00:16]}  Ka7 {[%clk 0:00:04]} 61. c8=Q {[%clk 0:00:17]}  Kb6 {[%clk 0:00:04]} 62. Qc6+ {[%clk 0:00:18]}  Ka5 {[%clk 0:00:05]} 63. Ra8+ {[%clk 0:00:17]}  Kb4 {[%clk 0:00:06]} 64. Qc5# {[%clk 0:00:18]} 1-0


[Site "https://www.chess.com"]